bitfinex/quotes_SOLUSD_20241118
["timestamp","ask_amount","ask_price","bid_price","bid_amount"]
[1731890651254,16.65043662,235.21,235.13,16.65043662]
[1731890651459,16.65043662,235.25,235.17,16.65043662]
[1731890651760,16.65043662,235.23,235.15,16.65043662]
[1731890652274,20.90113662,235.25,235.17,16.65043662]
[1731890652480,168.6181,235.29,235.21,16.65043662]
[1731890652481,4.2505,235.27,235.21,16.65043662]
[1731890655556,23.776884,235.26,235.17,16.65043662]
[1731890655758,16.65043662,235.23,235.15,16.65043662]
[1731890656059,16.65043662,235.21,235.12,10.6328]
[1731890656270,10.41578419,235.2,235.12,10.6328]
[1731890657059,23.776884,235.22,235.12,10.6328]
[1731890657278,23.776884,235.22,235.04,28.23669626]
[1731890657279,34.19266819,235.22,235.15,10.41578419]
[1731890657478,4.2504,235.27,235.17,10.41578419]
[1731890657659,10.41578419,235.25,235.17,10.41578419]
[1731890658380,20.90824509,235.27,235.18,16.65784509]
[1731890658582,4.2504,235.27,235.22,16.65784509]
[1731890658885,4.2504,235.27,235.2,16.65784509]
[1731890659860,20.90824509,235.27,235.2,16.65784509]
[1731890660181,20.90824509,235.27,235.18,27.28794509]
[1731890661372,23.776884,235.26,235.18,16.65784509]
[1731890662263,20.90824509,235.27,235.2,16.65784509]
[1731890662481,6.3181,235.29,235.0,34.9717445]
[1731890662482,10.5682,235.29,235.22,16.65784509]
[1731890662781,27.22604509,235.29,235.22,16.65784509]
[1731890663396,24.027864,235.28,235.22,16.65784509]
[1731890663593,23.776884,235.23,235.08,6.65416588]
[1731890663770,16.65784509,235.13,235.05,27.29344509]
[1731890664384,16.65784509,235.13,235.04,21.5807]
[1731890664385,16.65784509,235.11,235.04,15.5516]
[1731890664568,16.65784509,235.11,235.04,4.2545]
[1731890666080,16.65784509,235.11,235.01,20.91284509]
[1731890666081,16.65784509,235.09,235.01,20.91284509]
[1731890666388,16.65784509,235.09,235.01,16.65784509]
[1731890666565,16.65784509,235.09,235.01,20.91284509]
[1731890667972,16.65784509,235.11,235.03,16.65784509]
[1731890668294,16.65784509,235.13,235.05,16.65784509]
[1731890668975,16.65784509,235.15,235.07,16.65784509]
[1731890669491,20.91044509,235.15,235.07,16.65784509]
[1731890669787,16.65784509,235.15,235.07,20.91184509]
[1731890670420,6.2043,235.21,235.09,16.65784509]
[1731890670565,16.65784509,235.18,235.07,14.8891]
[1731890670768,16.65784509,235.14,235.07,14.8891]
[1731890670968,16.65784509,235.14,235.07,31.54694509]
[1731890671369,16.65784509,235.16,235.09,16.65784509]
[1731890671569,16.65784509,235.16,235.09,20.91134509]
[1731890672571,16.65784509,235.18,235.09,31.54554509]
[1731890672802,16.65784509,235.18,235.11,16.65784509]
[1731890673612,16.65784509,235.18,235.1,4.2533]
[1731890673903,16.65784509,235.18,235.11,16.65784509]
[1731890674204,16.65784509,235.2,235.11,16.65784509]
[1731890674399,10.6272,235.25,235.17,16.65784509]
[1731890674400,16.65784509,235.25,235.17,16.65784509]
[1731890675482,6.0641,235.28,235.11,15.4745]
[1731890675483,6.0641,235.28,235.2,16.65784509]
[1731890675687,10.3144,235.28,235.2,20.90944509]
[1731890676004,16.65784509,235.29,235.2,20.90944509]
[1731890676203,16.65784509,235.29,235.2,31.53864509]
[1731890676512,16.65784509,235.27,235.2,14.8808]
[1731890677486,16.65784509,235.25,235.16,20.91014509]
[1731890677677,16.65784509,235.22,235.16,4.2523]
[1731890677881,16.65784509,235.24,235.16,20.91014509]
[1731890678605,16.65784509,235.24,235.16,31.54114509]
[1731890680293,16.65784509,235.22,235.16,10.631]
[1731890681208,16.65784509,235.26,235.16,31.54124509]
[1731890681385,40.43472909,235.26,235.16,31.54124509]
[1731890681583,44.68542909,235.26,235.16,31.54124509]
[1731890681780,16.65784509,235.24,235.16,31.54124509]
[1731890682197,28.027584,235.26,235.16,14.8834]
[1731890682407,10.41054583,235.25,235.16,25.29394583]
[1731890682582,10.41054583,235.25,235.18,10.41054583]
[1731890682786,10.41054583,235.29,235.2,10.41054583]
[1731890683189,10.41054583,235.27,235.18,10.41054583]
[1731890684392,14.66104583,235.27,235.19,4.2518]
[1731890684902,10.41054583,235.29,235.2,10.41054583]
[1731890685221,10.41054583,235.33,235.24,10.41054583]
[1731890685685,10.41054583,235.31,235.24,10.41054583]
[1731890686001,10.41054583,235.33,235.24,10.41054583]
[1731890686415,4.2495,235.32,235.24,14.66134583]
[1731890686716,10.41054583,235.29,235.2,10.6292]
[1731890687516,10.41054583,235.27,235.2,10.6292]
[1731890687814,10.41054583,235.31,235.24,10.41054583]
[1731890688107,10.41054583,235.33,235.24,10.41054583]
[1731890688286,10.41054583,235.33,235.26,10.41054583]
[1731890688492,10.41054583,235.33,235.26,4.2505]
[1731890688690,14.65994583,235.33,235.26,4.2505]
[1731890688881,14.65994583,235.33,235.18,15.13268]
[1731890688882,10.41054583,235.29,235.18,15.13268]
[1731890689102,10.41054583,235.29,235.2,10.41054583]
[1731890689299,4.2494,235.33,235.18,25.29224583]
[1731890689300,10.41054583,235.27,235.18,25.29224583]
[1731890689894,10.41054583,235.25,235.18,25.29224583]
[1731890690086,10.41054583,235.25,235.18,14.8817]
[1731890690485,10.41054583,235.25,235.03,12.95623955]
[1731890690486,20.0,235.18,235.03,12.95623955]
[1731890690807,10.41054583,235.12,235.02,10.41054583]
[1731890690984,43.776884,235.19,235.05,0.73868224]
[1731890690985,10.41054583,235.1,235.05,0.73868224]
[1731890691185,10.41054583,235.1,235.02,10.41054583]
[1731890691407,10.41054583,235.1,235.02,0.73928026]
[1731890691613,10.41054583,235.08,235.0,37.50484583]
[1731890691981,10.41054583,235.08,235.0,27.0943]
[1731890692404,16.68024293,235.08,235.0,31.3496]
[1731890693321,16.68024293,235.06,235.0,27.0943]
[1731890693530,16.68024293,235.06,235.0,16.4562]
[1731890693697,16.68024293,235.06,234.99,7.17919004]
[1731890693698,16.68024293,235.04,234.99,0.73939004]
[1731890693917,16.68024293,235.04,234.95,16.68024293]
[1731890694217,16.68024293,235.04,234.98,0.73924]
[1731890697306,16.68024293,235.04,234.97,16.68024293]
[1731890697610,16.68024293,235.02,234.94,37.7929]
[1731890698512,16.68024293,235.0,234.92,0.73898109]
[1731890698819,16.68024293,234.98,234.91,0.4668373]
[1731890699317,16.68024293,234.94,234.91,0.4668373]
[1731890699623,16.68024293,234.96,234.91,0.4668373]
[1731890700602,16.68024293,234.98,234.92,4.2567]
[1731890700801,16.68024293,234.98,234.91,0.4668373]
[1731890701624,16.68024293,234.94,234.91,0.4668373]
[1731890703218,4.256,234.96,234.91,0.4668373]
[1731890703219,16.68024293,234.92,234.91,0.4668373]
[1731890703429,20.09367462,234.89,234.71,16.4562]
[1731890703619,16.68024293,234.81,234.73,0.73772924]
[1731890704299,16.68024293,234.81,234.68,7.1156699]
[1731890704300,16.77391755,234.74,234.68,7.1156699]
[1731890704502,16.68024293,234.78,234.68,17.14708023]
[1731890704719,16.68024293,234.78,234.69,4.2609]
[1731890705431,16.68024293,234.79,234.7,16.68024293]
[1731890705616,16.68024293,234.75,234.68,17.14708023]
[1731890705800,16.68024293,234.75,234.68,0.4668373]
[1731890706118,16.68024293,234.8,234.72,16.68024293]
[1731890706332,16.68024293,234.82,234.74,16.68024293]
[1731890706703,4.258,234.85,234.77,16.68024293]
[1731890707707,24.258,234.85,234.79,16.68024293]
[1731890707998,16.68024293,234.88,234.81,16.68024293]
[1731890708216,16.68024293,234.92,234.83,16.68024293]
[1731890708412,16.68024293,234.92,234.85,16.68024293]
[1731890708616,16.68024293,234.92,234.83,16.68024293]
[1731890708617,20.93704293,234.92,234.83,16.68024293]
[1731890708815,16.68024293,234.9,234.83,16.68024293]
[1731890708999,16.68024293,234.9,234.81,16.68024293]
[1731890709200,16.68024293,234.88,234.79,16.68024293]
[1731890709601,16.68024293,234.88,234.81,16.68024293]
[1731890709996,16.68024293,234.83,234.7,4.2606]
[1731890710203,162.4,234.91,234.76,16.68024293]
[1731890710204,16.68024293,234.85,234.76,16.68024293]
[1731890710607,0.09367462,234.9,234.78,16.68024293]
[1731890710906,16.68024293,234.89,234.81,16.68024293]
[1731890711098,0.09367462,234.9,234.83,16.68024293]
[1731890711354,16.68024293,234.89,234.81,16.68024293]
[1731890712229,16.68024293,234.89,234.75,16.68024293]
[1731890712230,16.68024293,234.83,234.75,16.68024293]
[1731890712523,16.68024293,234.81,234.73,16.68024293]
[1731890712903,16.68024293,234.79,234.71,16.68024293]
[1731890713129,20.09367462,234.78,234.69,16.68024293]
[1731890713560,16.68024293,234.75,234.67,16.68024293]
[1731890714409,0.09367462,234.72,234.65,16.68024293]
[1731890714731,23.87055862,234.72,234.63,16.68024293]
[1731890715111,40.94074293,234.71,234.63,16.68024293]
[1731890716212,20.0,234.69,234.63,16.68024293]
[1731890716411,36.68024293,234.69,234.58,10.6569]
[1731890716630,36.68024293,234.69,234.61,16.68024293]
[1731890717010,16.68024293,234.73,234.65,16.68024293]
[1731890717204,16.68024293,234.75,234.67,16.68024293]
[1731890718018,16.68024293,234.73,234.65,16.68024293]
[1731890718225,23.87055862,234.7,234.63,16.68024293]
[1731890718719,0.09367462,234.7,234.63,16.68024293]
[1731890718912,41.03481755,234.69,234.61,16.68024293]
[1731890719710,64.81170155,234.69,234.61,16.68024293]
[1731890721819,64.81170155,234.69,234.56,0.73855031]
[1731890722140,64.81170155,234.69,234.59,16.68024293]
[1731890722306,20.94114293,234.69,234.61,16.68024293]
[1731890722614,21.2939,234.81,234.68,17.14708023]
[1731890722615,4.2593,234.78,234.68,17.14708023]
[1731890722821,16.68024293,234.74,234.68,0.4668373]
[1731890723133,16.68024293,234.72,234.68,0.4668373]
[1731890723837,190.62434393,234.81,234.68,0.4668373]
[1731890723838,16.68024293,234.73,234.68,0.4668373]
[1731890724145,16.68024293,234.77,234.69,16.68024293]
[1731890724448,16.68024293,234.76,234.68,27.79988023]
[1731890724653,16.68024293,234.75,234.68,11.1196373]
[1731890724940,16.68024293,234.75,234.68,32.06098023]
[1731890725431,16.68024293,234.71,234.68,0.4668373]
[1731890725652,16.68024293,234.74,234.68,0.4668373]
[1731890725927,16.68024293,234.7,234.68,0.4668373]
[1731890728225,4.2609,234.69,234.68,0.4668373]
[1731890729837,24.2609,234.69,234.68,0.4668373]
[1731890730137,48.13145862,234.69,234.68,0.4668373]
[1731890730830,4.2609,234.69,234.68,0.4668373]
[1731890731141,20.94104293,234.7,234.68,0.4668373]
[1731890733338,20.94104293,234.7,234.55,16.3438]
[1731890733339,0.1,234.66,234.55,1.005]
[1731890733551,24.002374,234.65,234.55,1.005]
[1731890733868,16.68024293,234.56,234.55,1.005]
[1731890734949,40.55080155,234.56,234.55,1.005]
[1731890735116,44.81410155,234.56,234.55,1.005]
[1731890735738,64.81410155,234.56,234.55,1.005]
[1731890736313,64.81410155,234.56,234.44,0.4668373]
[1731890736314,0.1,234.54,234.44,0.4668373]
[1731890736617,16.68024293,234.45,234.44,0.4668373]
[1731890737117,20.94554293,234.45,234.44,0.4668373]
[1731890737321,44.81610155,234.45,234.44,0.4668373]
[1731890737534,20.94554293,234.45,234.44,0.4668373]
[1731890738247,44.72242693,234.45,234.44,0.4668373]
[1731890738636,44.81610155,234.45,234.44,0.4668373]
[1731890738827,44.81610155,234.45,234.31,24.0813563]
[1731890738828,20.12549,234.44,234.31,7.40111337]
[1731890739144,20.12549,234.44,234.22,21.8955]
[1731890739145,16.68024293,234.33,234.26,16.68024293]
[1731890739374,16.68024293,234.31,234.24,0.74140755]
[1731890739533,16.68024293,234.31,234.22,38.57574293]
[1731890739851,16.68024293,234.31,234.23,6.66382215]
[1731890740054,16.68024293,234.29,234.23,6.66382215]
[1731890740344,16.68024293,234.27,234.22,15.3388]
[1731890740733,16.68024293,234.27,234.2,0.4668373]
[1731890740923,16.68024293,234.28,234.21,16.68024293]
[1731890741325,16.68024293,234.28,234.2,0.4668373]
[1731890742146,16.68024293,234.3,234.23,16.68024293]
[1731890742446,16.68024293,234.37,234.29,16.68024293]
[1731890742630,16.68024293,234.39,234.31,16.68024293]
[1731890743438,4.2658,234.42,234.33,16.68024293]
[1731890743642,16.68024293,234.41,234.33,16.68024293]
[1731890744654,16.68024293,234.39,234.31,16.68024293]
[1731890745028,162.3,234.47,234.35,16.68024293]
[1731890745232,16.68024293,234.54,234.45,16.68024293]
[1731890745448,4.2623,234.61,234.39,0.12549]
[1731890745449,4.2623,234.61,234.49,16.68024293]
[1731890745647,16.68024293,234.57,234.47,16.68024293]
[1731890745857,16.68024293,234.55,234.41,0.1]
[1731890746042,16.68024293,234.55,234.45,16.68024293]
[1731890746351,16.68024293,234.57,234.49,16.68024293]
[1731890746559,16.68024293,234.57,234.47,16.68024293]
[1731890746738,162.3,234.71,234.45,15.0283]
[1731890746739,4.2607,234.7,234.53,16.68024293]
[1731890746943,16.68024293,234.62,234.53,16.68024293]
[1731890747466,4.2607,234.7,234.55,16.68024293]
[1731890747467,16.68024293,234.64,234.55,16.68024293]
[1731890747640,16.68024293,234.62,234.53,16.68024293]
[1731890747957,16.68024293,234.6,234.51,16.68024293]
[1731890748150,16.68024293,234.56,234.5,16.6211]
[1731890748658,16.68024293,234.54,234.47,4.2648]
[1731890749035,16.68024293,234.52,234.45,10.6632]
[1731890749235,16.68024293,234.56,234.47,16.68024293]
[1731890749542,16.68024293,234.56,234.49,16.68024293]
[1731890750556,16.68024293,234.6,234.51,16.68024293]
[1731890751658,16.68024293,234.62,234.53,16.68024293]
[1731890752036,16.68024293,234.6,234.53,16.68024293]
[1731890752439,16.68024293,234.58,234.51,10.6602]
[1731890752950,16.68024293,234.54,234.48,4.2646]
[1731890753149,16.68024293,234.56,234.48,4.2646]
[1731890753945,16.68024293,234.56,234.46,4.265]
[1731890753946,16.68024293,234.54,234.46,4.265]
[1731890754144,16.68024293,234.52,234.45,27.34324293]
[1731890754554,16.68024293,234.52,234.42,22.9832]
[1731890754555,16.68024293,234.5,234.42,16.6211]
[1731890755144,16.68024293,234.46,234.39,10.6657]
[1731890755546,16.68024293,234.48,234.38,31.61314293]
[1731890755846,16.68024293,234.46,234.38,10.6664]
[1731890756046,16.68024293,234.46,234.38,14.9329]
[1731890756244,27.249384,234.46,234.38,14.9329]
[1731890756549,27.249384,234.44,234.35,27.249384]
[1731890756748,27.249384,234.42,234.34,15.5552]
[1731890757260,27.249384,234.48,234.28,6.6496]
[1731890757261,27.249384,234.38,234.29,27.249384]
[1731890758063,27.249384,234.34,234.26,15.5552]
[1731890758364,27.249384,234.36,234.27,27.249384]
[1731890758573,27.249384,234.34,234.26,15.5552]
[1731890758946,27.249384,234.34,234.25,27.249384]
[1731890759142,27.249384,234.32,234.22,27.249384]
[1731890759347,27.249384,234.3,234.22,27.249384]
[1731890759876,27.249384,234.3,234.2,11.3861373]
[1731890759877,27.249384,234.3,234.2,31.9859213]
[1731890760176,4.2682,234.29,234.2,31.9859213]
[1731890760374,27.249384,234.3,234.2,31.9859213]
[1731890760559,31.517484,234.3,234.2,27.7162213]
[1731890760755,27.249384,234.26,234.2,0.4668373]
[1731890760958,27.249384,234.24,234.2,0.4668373]
[1731890761169,27.249384,234.26,234.2,0.4668373]
[1731890761348,27.249384,234.32,234.23,27.249384]
[1731890762046,31.517084,234.32,234.23,27.249384]
[1731890762246,27.249384,234.32,234.23,31.518684]
[1731890763946,27.249384,234.36,234.29,27.249384]
[1731890764253,27.249384,234.34,234.25,27.249384]
[1731890764473,27.249384,234.32,234.25,27.249384]
[1731890764772,27.249384,234.32,234.23,42.191884]
[1731890764984,27.249384,234.32,234.23,37.922584]
[1731890765353,27.249384,234.32,234.23,42.191884]
[1731890765672,27.249384,234.41,234.31,27.249384]
[1731890765979,27.249384,234.43,234.35,27.249384]
[1731890766775,27.249384,234.45,234.37,27.249384]
[1731890766943,27.249384,234.39,234.31,4.2678]
[1731890767755,27.249384,234.41,234.31,10.6696]
[1731890767961,27.249384,234.47,234.38,27.249384]
[1731890768186,27.249384,234.49,234.41,27.249384]
[1731890768362,4.2647,234.48,234.41,27.249384]
[1731890768683,10.6581,234.57,234.34,0.1]
[1731890768684,27.249384,234.47,234.39,27.249384]
[1731890768901,14.9215,234.56,234.33,4.2674]
[1731890768902,27.249384,234.51,234.43,27.249384]
[1731890769089,27.249384,234.47,234.39,27.249384]
[1731890770078,31.514484,234.47,234.39,27.249384]
[1731890770255,27.249384,234.41,234.33,27.249384]
[1731890771081,27.249384,234.39,234.31,27.249384]
[1731890771272,27.249384,234.37,234.29,42.560384]
[1731890771476,27.249384,234.39,234.29,42.560384]
[1731890771985,27.249384,234.33,234.25,27.249384]
[1731890772283,27.249384,234.33,234.23,27.249384]
[1731890772482,27.249384,234.31,234.23,27.249384]
[1731890772686,4.2673,234.34,234.21,27.249384]
[1731890772687,27.249384,234.29,234.21,27.249384]
[1731890772867,27.249384,234.25,234.2,0.4668373]
[1731890774263,31.518384,234.25,234.2,0.4668373]
[1731890774662,27.249384,234.21,234.2,0.4668373]
[1731890775180,27.249384,234.23,234.2,0.4668373]
[1731890776096,4.2694,234.22,234.2,0.4668373]
[1731890776298,27.249384,234.21,234.2,0.4668373]
[1731890776512,4.2694,234.22,234.2,0.4668373]
[1731890779404,16.80137966,234.29,234.21,16.80137966]
[1731890780682,16.80137966,234.31,234.23,16.80137966]
[1731890780999,4.2676,234.32,234.25,16.80137966]
[1731890781376,16.80137966,234.33,234.25,16.80137966]
[1731890781574,16.80137966,234.33,234.25,21.07017966]
[1731890781986,21.06887966,234.33,234.25,16.80137966]
[1731890782591,16.80137966,234.41,234.31,16.80137966]
[1731890782798,6.3435,234.5,234.25,6.6377]
[1731890782799,16.80137966,234.45,234.37,16.80137966]
[1731890783209,21.06677966,234.45,234.37,16.80137966]
[1731890783984,16.80137966,234.47,234.39,16.80137966]
[1731890784178,21.06627966,234.47,234.39,16.80137966]
[1731890784387,4.2649,234.47,234.39,27.24533344]
[1731890785011,4.2649,234.47,234.39,31.51163344]
[1731890785300,27.24533344,234.48,234.39,31.51163344]
[1731890785505,4.2644,234.5,234.43,27.24533344]
[1731890786008,48.65863344,234.6,234.45,27.24533344]
[1731890786009,27.24533344,234.54,234.45,27.24533344]
[1731890786509,27.24533344,234.58,234.49,27.24533344]
[1731890786705,27.24533344,234.6,234.53,27.24533344]
[1731890786878,27.24533344,234.64,234.56,27.24533344]
[1731890787081,31.50723344,234.64,234.56,27.24533344]
[1731890787499,31.50723344,234.64,234.51,14.9243]
[1731890787500,27.24533344,234.6,234.52,27.24533344]
[1731890787687,4.2619,234.64,234.49,4.2645]
[1731890787688,31.50723344,234.64,234.56,27.24533344]
[1731890787878,27.24533344,234.66,234.58,27.24533344]
[1731890788078,27.24533344,234.66,234.51,0.1]
[1731890788079,27.24533344,234.68,234.6,27.24533344]
[1731890788318,27.24533344,234.66,234.58,27.24533344]
[1731890789178,31.50673344,234.66,234.58,27.24533344]
[1731890790006,27.24533344,234.6,234.5,27.24533344]
[1731890790307,27.24533344,234.64,234.56,27.24533344]
[1731890791006,27.24533344,234.62,234.54,27.24533344]
[1731890791179,27.24533344,234.64,234.58,27.24533344]
[1731890791383,27.24533344,234.66,234.58,27.24533344]
[1731890791796,27.24533344,234.64,234.56,27.24533344]
[1731890792310,27.24533344,234.69,234.61,27.24533344]
[1731890792492,27.24533344,234.67,234.59,27.24533344]
[1731890793207,4.2605,234.71,234.54,0.1]
[1731890793208,27.24533344,234.69,234.61,27.24533344]
[1731890793391,4.2605,234.71,234.63,27.24533344]
[1731890793392,31.50583344,234.71,234.63,27.24533344]
[1731890793989,10.6502,234.86,234.6,4.2625]
[1731890793990,27.24533344,234.77,234.68,27.24533344]
[1731890794214,27.24533344,234.77,234.7,27.24533344]
[1731890794521,6.3435,234.83,234.6,42.16423344]
[1731890794522,27.24533344,234.71,234.64,27.24533344]
[1731890795311,4.2613,234.67,234.6,27.24533344]
[1731890795676,27.24533344,234.66,234.58,27.24533344]
[1731890796105,4.2613,234.67,234.6,27.24533344]
[1731890796689,27.24533344,234.66,234.58,27.24533344]
[1731890796887,4.2613,234.67,234.6,27.24533344]
[1731890797214,4.2613,234.67,234.58,27.24533344]
[1731890797509,4.2613,234.67,234.46,0.1]
[1731890797510,27.24533344,234.59,234.43,10.6639]
[1731890797735,27.24533344,234.5,234.41,27.24533344]
[1731890798020,27.24533344,234.54,234.43,27.24533344]
[1731890798200,27.24533344,234.62,234.52,27.24533344]
[1731890798725,27.24533344,234.6,234.5,27.24533344]
[1731890798905,27.24533344,234.62,234.52,27.24533344]
[1731890799086,27.24533344,234.6,234.52,27.24533344]
[1731890799513,4.2623,234.61,234.52,27.24533344]
[1731890799700,4.262,234.63,234.54,27.24533344]
[1731890800108,27.24533344,234.6,234.52,27.24533344]
[1731890800391,27.24533344,234.62,234.54,27.24533344]
[1731890800808,27.24533344,234.6,234.52,27.24533344]
[1731890801220,4.2627,234.59,234.52,27.24533344]
[1731890801724,4.2624,234.61,234.52,27.24533344]
[1731890801899,27.24533344,234.58,234.5,37.90623344]
[1731890802442,27.24533344,234.58,234.28,0.73800111]
[1731890802443,27.24533344,234.56,234.46,27.24533344]
[1731890802586,0.09367462,234.6,234.37,0.1]
[1731890802587,27.24533344,234.52,234.42,27.24533344]
[1731890802798,27.24533344,234.5,234.4,27.24533344]
[1731890803013,27.24533344,234.53,234.44,27.24533344]
[1731890803295,4.264,234.52,234.44,27.24533344]
[1731890804604,27.24533344,234.55,234.46,27.24533344]
[1731890804826,4.2625,234.6,234.54,27.24533344]
[1731890805095,4.2623,234.62,234.56,27.24533344]
[1731890805617,27.24533344,234.57,234.4,20.25098]
[1731890805825,27.24533344,234.49,234.39,37.91123344]
[1731890806119,27.24533344,234.53,234.45,27.24533344]
[1731890806626,27.24533344,234.53,234.45,31.51053344]
[1731890806927,4.2637,234.54,234.45,31.51053344]
[1731890806928,31.50853344,234.57,234.49,27.24533344]
[1731890807615,0.09367462,234.58,234.51,27.24533344]
[1731890808012,4.35667462,234.58,234.51,27.24533344]
[1731890808329,0.09367462,234.58,234.51,27.24533344]
[1731890809536,27.24533344,234.57,234.47,27.24533344]
[1731890810211,0.09367462,234.58,234.51,27.24533344]
[1731890810729,4.35667462,234.58,234.51,27.24533344]
[1731890810927,31.60200806,234.58,234.51,27.24533344]
[1731890811627,31.60200806,234.58,234.53,27.24533344]
[1731890811628,0.09367462,234.58,234.53,27.24533344]
[1731890811799,0.09367462,234.58,234.57,27.24533344]
[1731890812004,0.09367462,234.58,234.57,27.37082344]
[1731890812632,0.09367462,234.58,234.57,31.63392344]
[1731890813008,0.09367462,234.58,234.57,31.75941344]
[1731890814126,0.09367462,234.58,234.57,31.50843344]
[1731890814437,0.09367462,234.58,234.53,27.24533344]
[1731890814838,0.09367462,234.58,234.54,4.2636]
[1731890815532,0.09367462,234.58,234.53,27.24533344]
[1731890816015,0.09367462,234.58,234.53,31.50903344]
[1731890816836,26.83900806,234.62,234.53,31.50903344]
[1731890817142,27.24533344,234.66,234.57,27.24533344]
[1731890817307,27.24533344,234.64,234.55,27.24533344]
[1731890818004,27.24533344,234.64,234.57,27.24533344]
[1731890818513,27.24533344,234.64,234.56,4.2632]
[1731890818947,27.24533344,234.66,234.57,27.24533344]
[1731890819111,27.24533344,234.7,234.61,27.24533344]
[1731890819430,4.2604,234.72,234.57,0.19367462]
[1731890819431,27.24533344,234.72,234.63,27.24533344]
[1731890820337,4.2605,234.71,234.63,27.24533344]
[1731890820546,4.2605,234.71,234.65,27.24533344]
[1731890821211,27.24533344,234.72,234.65,27.24533344]
[1731890821433,27.24533344,234.72,234.61,4.2623]
[1731890821434,27.24533344,234.76,234.67,27.24533344]
[1731890822132,27.24533344,234.78,234.69,27.24533344]
[1731890822332,4.2596,234.77,234.69,27.24533344]
[1731890823230,27.24533344,234.76,234.69,27.24533344]
[1731890823820,31.50503344,234.76,234.69,27.24533344]
[1731890824016,27.24533344,234.78,234.69,31.50613344]
[1731890824843,31.50423344,234.8,234.71,27.24533344]
[1731890825054,27.24533344,234.82,234.75,27.24533344]
[1731890825339,15.2788,234.88,234.79,27.24533344]
[1731890825340,31.50273344,234.88,234.79,27.24533344]
[1731890825518,6.2803,234.95,234.81,27.24533344]
[1731890825519,31.50253344,234.9,234.81,27.24533344]
[1731890825919,27.24533344,234.86,234.79,10.6478]
[1731890826241,16.71494304,234.84,234.79,10.6478]
[1731890826854,16.71494304,234.84,234.76,16.71494304]
[1731890827517,16.71494304,234.8,234.7,16.71494304]
[1731890827730,16.71494304,234.76,234.68,10.6527]
[1731890828437,16.71494304,234.74,234.68,10.6527]
[1731890828640,16.71494304,234.72,234.64,4.2618]
[1731890829137,16.71494304,234.74,234.65,16.71494304]
[1731890829340,20.97464304,234.76,234.67,16.71494304]
[1731890829548,16.71494304,234.8,234.71,16.71494304]
[1731890829848,16.71494304,234.82,234.75,16.71494304]
[1731890830018,20.97314304,234.84,234.75,16.71494304]
[1731890830210,20.97314304,234.84,234.68,0.2]
[1731890830211,4.2582,234.84,234.76,27.16083184]
[1731890830637,27.16083184,234.87,234.78,27.16083184]
[1731890831538,27.16083184,234.87,234.75,19.3879]
[1731890831539,27.16083184,234.83,234.75,19.3879]
[1731890832039,27.16083184,234.81,234.74,10.65]
[1731890832338,27.16083184,234.79,234.71,4.2604]
[1731890832549,27.16083184,234.79,234.7,27.16083184]
[1731890832727,27.16083184,234.79,234.7,31.42143184]
[1731890832930,27.16083184,234.79,234.7,27.16083184]
[1731890833138,27.16083184,234.77,234.69,25.7804]
[1731890833536,27.16083184,234.77,234.69,30.0413]
[1731890834045,27.16083184,234.73,234.64,42.07703184]
[1731890834230,27.16083184,234.71,234.64,42.07703184]
[1731890834435,27.16083184,234.75,234.66,27.16083184]
[1731890835027,27.16083184,234.77,234.68,27.16083184]
[1731890835331,4.2587,234.81,234.66,27.16083184]
[1731890835332,27.16083184,234.75,234.66,27.16083184]
[1731890835529,27.16083184,234.73,234.64,42.07703184]
[1731890835726,27.16083184,234.73,234.66,27.16083184]
[1731890836243,27.16083184,234.73,234.64,42.07713184]
[1731890836441,31.42033184,234.77,234.68,27.16083184]
[1731890836654,27.16083184,234.81,234.72,27.16083184]
[1731890836942,4.2582,234.84,234.72,27.16083184]
[1731890836943,27.16083184,234.79,234.72,27.16083184]
[1731890837145,27.16083184,234.81,234.72,27.16083184]
[1731890837846,27.16083184,234.81,234.73,4.2602]
[1731890838225,31.41963184,234.81,234.73,4.2602]
[1731890838548,27.16083184,234.79,234.71,14.9116]
[1731890838938,27.16083184,234.81,234.74,20.34465462]
[1731890839248,27.16083184,234.87,234.77,27.16083184]
[1731890839549,27.16083184,234.87,234.79,27.16083184]
[1731890840138,31.41853184,234.87,234.79,27.16083184]
[1731890840541,4.2555,234.99,234.82,27.16083184]
[1731890840729,27.16083184,234.97,234.86,27.16083184]
[1731890840924,27.16083184,234.97,234.88,27.16083184]
[1731890841841,27.16083184,235.01,234.92,27.16083184]
[1731890842251,31.41603184,235.01,234.92,27.16083184]
[1731890842427,27.16083184,234.95,234.89,10.6431]
[1731890842635,27.16083184,234.91,234.83,10.6456]
[1731890842841,27.16083184,234.91,234.83,14.9039]
[1731890845132,10.7378,235.01,234.83,14.9039]
[1731890845133,27.16083184,234.95,234.86,27.16083184]